bitfinex-derivatives/quotes_ETHF0:USTF0_20260303
["timestamp","ask_amount","ask_price","bid_price","bid_amount"]
[1772517549224,1.31730197,1991.6,1991.0,8.912]
[1772517549422,1.06117134,1992.2,1991.1,1.10732084]
[1772517549728,1.06117134,1992.2,1991.2,1.10732084]
[1772517549927,1.06117134,1992.0,1991.2,1.10732084]
[1772517550320,1.06117134,1992.5,1991.4,1.10732084]
[1772517550521,1.06770027,1992.5,1991.6,1.10732084]
[1772517550728,1.06117134,1992.3,1991.6,1.10732084]
[1772517551629,1.06117134,1992.1,1991.5,8.907]
[1772517552922,1.06117134,1992.1,1991.5,10.01432084]
[1772517553122,1.06117134,1992.1,1991.6,1.10732084]
[1772517554620,1.06117134,1992.1,1991.5,8.907]
[1772517554823,1.06117134,1992.1,1991.4,1.10732084]
[1772517555023,1.06117134,1992.1,1991.4,7.71532084]
[1772517556026,1.06117134,1992.1,1991.5,1.10732084]
[1772517556827,1.06117134,1992.1,1991.5,10.00832084]
[1772517557227,1.06117134,1992.1,1991.6,1.10732084]
[1772517559329,1.06117134,1992.1,1991.5,8.901]
[1772517559926,1.06117134,1992.1,1991.5,9.87514362]
[1772517560326,1.06117134,1992.1,1991.5,8.901]
[1772517560927,1.06117134,1992.1,1991.6,0.97414362]
[1772517561226,1.06117134,1992.1,1991.5,9.87514362]
[1772517562033,0.99307602,1991.9,1991.5,8.901]
[1772517562332,0.99307602,1991.9,1991.3,9.87514362]
[1772517562533,0.99307602,1991.9,1991.3,9.87414362]
[1772517562732,0.99307602,1991.9,1991.4,0.97414362]
[1772517564233,0.99307602,1991.7,1990.8,0.97414362]
[1772517564433,0.99307602,1991.7,1991.0,0.97414362]
[1772517564633,0.99307602,1991.7,1991.1,8.899]
[1772517565134,0.99307602,1991.7,1991.1,9.87314362]
[1772517567037,0.99307602,1991.7,1991.2,0.97414362]
[1772517568635,0.99307602,1991.7,1991.1,9.87314362]
[1772517569528,0.99307602,1991.7,1990.5,0.73441754]
[1772517569529,0.99307602,1991.3,1990.5,0.73441754]
[1772517569733,0.99307602,1991.3,1990.5,9.63341754]
[1772517569932,0.99307602,1991.3,1990.6,0.73401829]
[1772517570330,0.99307602,1991.1,1990.6,0.73401829]
[1772517570532,0.99863986,1991.1,1990.6,0.73401829]
[1772517570835,0.99307602,1991.0,1990.5,0.75105934]
[1772517571027,0.99307602,1991.0,1990.6,0.75105934]
[1772517571228,0.00556384,1991.1,1990.7,0.75105934]
[1772517571229,0.99863986,1991.1,1990.7,0.75105934]
[1772517571531,7.20457972,1992.0,1991.1,0.73735189]
[1772517571532,0.99307602,1992.0,1991.1,0.73735189]
[1772517571730,0.99307602,1992.0,1991.4,0.73692405]
[1772517572633,0.99698302,1992.0,1991.4,0.73692405]
[1772517574029,0.003907,1992.0,1991.4,0.73692405]
[1772517574832,0.25105,1992.2,1991.4,0.73692405]
[1772517575534,1.24412602,1992.2,1991.4,0.73692405]
[1772517575731,1.24985486,1992.2,1991.4,0.73692405]
[1772517576231,0.00572884,1992.2,1991.4,0.73692405]
[1772517576437,0.99307602,1993.0,1991.8,0.97414362]
[1772517576632,0.99307602,1993.1,1992.0,0.97414362]
[1772517577429,0.99796838,1993.1,1992.0,0.97791669]
[1772517578534,0.00489236,1993.1,1992.0,0.97791669]
[1772517578935,0.00489236,1993.1,1992.2,0.97414362]
[1772517579938,0.00489236,1993.1,1992.4,0.97414362]
[1772517580132,0.00489236,1993.1,1992.3,0.25103]
[1772517580133,0.00489236,1993.1,1992.6,0.97414362]
[1772517580335,0.99796838,1993.1,1992.6,0.97414362]
[1772517580939,0.99796838,1993.1,1992.5,9.84814362]
[1772517581437,0.99796838,1993.1,1992.6,0.97414362]
[1772517582542,0.99796838,1993.1,1992.5,8.874]
[1772517582842,0.99796838,1993.1,1992.5,9.84814362]
[1772517583243,0.99796838,1993.1,1992.6,0.97414362]
[1772517583840,0.99796838,1993.1,1992.4,0.97414362]
[1772517586549,0.99307602,1992.9,1992.0,0.97791669]
[1772517590146,6.17146,1993.6,1992.0,0.97791669]
[1772517590147,0.81882592,1993.7,1992.4,0.84961595]
[1772517590349,0.81882592,1993.7,1992.6,0.84961595]
[1772517590545,0.81882592,1993.9,1993.0,0.84961595]
[1772517590744,6.17408289,1994.8,1992.9,0.25095]
[1772517590745,0.81882592,1994.4,1993.4,0.84961595]
[1772517590949,0.81882592,1994.4,1993.6,0.84961595]
[1772517591154,0.82294696,1994.4,1993.6,0.00464446]
[1772517591349,0.82294696,1994.4,1993.6,0.85426041]
[1772517591656,0.81882592,1993.9,1993.2,0.84961595]
[1772517591852,0.81882592,1993.9,1992.9,0.84961595]
[1772517592060,0.81882592,1993.7,1992.9,0.84961595]
[1772517592555,0.81882592,1993.5,1992.9,0.85342054]
[1772517593552,0.82371828,1993.5,1992.9,0.85342054]
[1772517594050,0.81882592,1993.5,1992.6,0.84961595]
[1772517594255,0.81882592,1993.3,1992.6,0.84961595]
[1772517594558,0.81882592,1994.1,1992.6,0.84961595]
[1772517594756,0.81882592,1993.9,1992.6,0.84961595]
[1772517595255,0.81882592,1993.9,1992.6,0.85564406]
[1772517596757,0.81882592,1993.9,1992.7,0.84961595]
[1772517597551,0.81882592,1993.7,1992.7,0.84961595]
[1772517597757,0.81882592,1994.1,1992.7,0.84961595]
[1772517598758,0.81882592,1993.9,1992.7,0.84961595]
[1772517600660,0.81882592,1994.3,1993.1,0.84961595]
[1772517600860,0.81882592,1994.3,1993.2,0.84961595]
[1772517601761,0.00412104,1994.4,1993.2,0.84961595]
[1772517601762,0.81882592,1994.1,1993.2,0.84961595]
[1772517602260,0.00412104,1994.4,1993.2,0.84961595]
[1772517602261,0.81882592,1993.9,1993.2,0.84961595]
[1772517602462,0.81882592,1993.9,1992.7,0.84961595]
[1772517602855,0.81882592,1993.7,1992.7,0.84961595]
[1772517604164,0.81882592,1993.5,1992.6,0.85564406]
[1772517604963,0.81882592,1993.1,1992.6,0.85564406]
[1772517605155,0.25087,1993.6,1992.6,0.85564406]
[1772517605354,0.82371828,1993.5,1992.6,0.85564406]
[1772517605563,0.81882592,1993.5,1992.6,0.85564406]
[1772517607166,0.82371828,1993.5,1992.6,0.85564406]
[1772517608458,0.81882592,1993.3,1992.6,0.85564406]
[1772517609161,0.81882592,1993.1,1992.6,0.85564406]
[1772517609971,0.00489236,1993.0,1992.6,0.85564406]
[1772517610170,0.00919208,1993.0,1992.6,0.85564406]
[1772517610662,0.82312564,1993.0,1992.6,0.85564406]
[1772517610868,0.00429972,1993.0,1992.6,0.85564406]
[1772517611261,0.82371828,1992.9,1992.6,0.00602811]
[1772517611461,0.82371828,1992.9,1992.4,0.84961595]
[1772517611666,0.81882592,1992.9,1992.4,0.84961595]
[1772517612370,0.82371828,1992.8,1992.4,0.85320657]
[1772517612862,0.00489236,1992.7,1992.4,0.85320657]
[1772517613261,0.81882592,1992.8,1992.4,0.00359062]
[1772517613461,0.81882592,1992.7,1992.4,0.00359062]
[1772517613667,0.81882592,1992.7,1992.2,0.84961595]
[1772517613865,0.81882592,1992.5,1992.0,0.84961595]
[1772517614064,0.81882592,1992.9,1992.0,0.84961595]
[1772517614261,0.00429972,1993.0,1992.2,2.33237521]
[1772517614458,0.81882592,1993.7,1992.8,0.84961595]
[1772517614762,0.81882592,1994.2,1993.0,0.84961595]
[1772517615163,0.81882592,1993.9,1993.0,0.84961595]
[1772517615364,0.82324267,1993.9,1993.0,0.85476049]
[1772517615562,0.81882592,1993.7,1993.0,0.85476049]
[1772517616165,0.00489236,1993.6,1993.0,0.85476049]
[1772517616564,0.82324267,1993.9,1993.0,0.85476049]
[1772517616868,0.00489236,1993.8,1993.0,0.85476049]
[1772517617367,0.00489236,1993.7,1993.0,0.85476049]
[1772517617568,0.82324267,1993.9,1993.0,0.85476049]
[1772517617769,0.00489236,1993.8,1993.0,0.85476049]
[1772517618275,0.82324267,1993.9,1993.0,0.85476049]
[1772517618276,0.00489236,1993.7,1993.0,0.85476049]
[1772517618462,0.82324267,1993.9,1993.0,0.85476049]
[1772517619171,0.00441675,1993.9,1993.0,0.85476049]
[1772517619872,0.56228752,1993.9,1993.0,0.85476049]
[1772517620073,0.55739516,1993.9,1993.0,0.85476049]
[1772517620273,0.00489236,1993.8,1993.0,0.85476049]
[1772517620965,0.00441675,1993.9,1993.0,0.85476049]
[1772517621168,0.00441675,1993.9,1993.2,0.58505639]
[1772517621568,0.00930911,1993.9,1993.2,0.58505639]
[1772517622569,0.00441675,1993.9,1993.2,0.58505639]
[1772517622777,0.00489236,1993.8,1993.2,0.58505639]
[1772517623172,0.56312871,1993.9,1993.2,0.58505639]
[1772517623374,0.00489236,1993.7,1993.2,0.58505639]
[1772517623572,0.55871196,1993.7,1993.2,0.58505639]
[1772517623868,0.56312871,1993.9,1993.2,0.58505639]
[1772517624676,0.00441675,1993.9,1993.2,0.58505639]
[1772517625072,0.00441675,1993.9,1993.4,0.58505639]
[1772517625570,0.56312871,1993.9,1993.4,0.58505639]
[1772517626569,0.00441675,1993.9,1993.4,0.58505639]
[1772517628879,0.56312871,1993.9,1993.4,0.58505639]
[1772517629077,0.00441675,1993.9,1993.4,0.58505639]
[1772517629578,0.56312871,1993.9,1993.4,0.58505639]
[1772517630276,0.00441675,1993.9,1993.4,0.58505639]
[1772517631180,0.55871196,1994.2,1993.4,0.58505639]
[1772517632179,0.56374139,1994.2,1993.4,0.58505639]
[1772517634583,0.56374139,1994.2,1993.1,8.735]
[1772517634785,0.56374139,1994.2,1993.2,0.58505639]
[1772517638294,0.00502943,1994.2,1993.5,0.58505639]
[1772517638688,0.56374139,1994.2,1993.5,0.58505639]
[1772517639189,0.56374139,1994.2,1993.2,0.58505639]
[1772517639887,0.55871196,1994.1,1993.2,0.58505639]
[1772517641485,0.55871196,1993.9,1993.0,0.59020093]
[1772517642692,0.55871196,1993.9,1993.0,0.00514454]
[1772517643093,0.55871196,1993.9,1993.0,0.59020093]
[1772517646193,0.55871196,1993.7,1993.0,0.00514454]
[1772517646394,0.55871196,1993.7,1993.0,0.59020093]
[1772517648700,1.512,1993.8,1993.0,0.59020093]
[1772517648997,0.55107262,1993.7,1993.0,0.59020093]
[1772517650489,1.512,1993.8,1993.0,0.59020093]
[1772517651801,0.55107262,1993.9,1993.0,0.59020093]
[1772517652189,0.55107262,1994.1,1993.2,0.57189979]
[1772517654200,0.55610205,1994.2,1993.5,0.57189979]
[1772517654598,0.00502943,1994.2,1993.5,0.57189979]
[1772517656601,0.55107262,1994.6,1993.7,0.57189979]
[1772517657497,0.55630564,1994.6,1993.7,0.57189979]
[1772517658902,0.00523302,1994.6,1994.0,0.57189979]
[1772517660698,0.55107262,1994.8,1994.0,0.57189979]
[1772517660699,0.55107262,1994.9,1994.3,0.57189979]
[1772517660899,7.76594681,1996.1,1994.2,1.4792948]
[1772517660900,0.55107262,1995.5,1994.6,0.57189979]
[1772517661300,0.55107262,1995.5,1994.8,0.57189979]
[1772517661600,0.55495161,1995.5,1994.8,0.5777067]
[1772517662603,0.00387899,1995.5,1994.8,0.5777067]
[1772517663000,0.55107262,1995.8,1994.9,0.57189979]
[1772517663195,0.55107262,1996.1,1994.9,0.57189979]
[1772517663904,0.55107262,1996.1,1994.8,1.48510171]
[1772517663905,0.55593117,1996.1,1995.2,0.57189979]
[1772517666906,0.55593117,1996.1,1995.0,8.604]
[1772517666907,0.00485855,1996.1,1995.5,0.57189979]
[1772517667109,0.55593117,1996.1,1995.5,0.57189979]
[1772517667310,0.00485855,1996.1,1995.5,0.57189979]
[1772517670108,0.55593117,1996.1,1995.5,0.57189979]
[1772517670809,0.55593117,1996.1,1994.9,0.57189979]
[1772517673211,1.512,1996.0,1994.9,0.57189979]
[1772517673508,0.55107262,1995.9,1994.9,0.57189979]
[1772517674512,0.55107262,1995.8,1994.9,0.57189979]
[1772517674814,0.55107262,1995.8,1994.8,0.00580691]
[1772517674815,2.28096742,1995.8,1994.8,0.00580691]
[1772517675111,0.55107262,1995.7,1994.8,0.00580691]
[1772517675910,1.7298948,1995.8,1994.3,10.0622948]
[1772517675911,0.55107262,1995.4,1994.4,0.57189979]
[1772517676106,0.55107262,1995.4,1994.1,0.57189979]
[1772517676611,6.16466,1995.8,1994.1,0.57189979]
[1772517676612,0.55107262,1995.1,1994.1,0.57189979]
[1772517676909,0.55107262,1995.1,1994.1,0.57645986]
[1772517677806,0.55107262,1995.1,1994.3,0.56510095]
[1772517684410,0.54255662,1995.6,1994.4,0.54474426]
[1772517684613,0.54255662,1995.6,1994.7,0.54474426]
[1772517685114,0.54255662,1995.6,1994.9,0.54474426]
[1772517686908,0.54255662,1995.6,1994.8,8.555]
[1772517687114,0.54255662,1995.6,1994.8,0.54474426]
[1772517687314,0.54255662,1995.6,1994.6,9.09474426]
[1772517689419,0.54255662,1995.4,1994.6,9.09474426]
[1772517689615,2.05455662,1995.4,1994.6,0.54474426]
[1772517689820,0.54255662,1995.3,1994.6,0.54474426]
[1772517690921,0.54255662,1995.3,1994.4,0.54474426]
[1772517694232,1.512,1995.4,1994.4,0.54474426]
[1772517694631,2.05455662,1995.4,1994.4,0.54474426]
[1772517696032,0.54255662,1995.3,1994.4,0.54474426]
[1772517699630,0.54255662,1995.5,1994.4,0.54474426]
[1772517700030,0.54255662,1995.5,1994.6,0.54474426]
[1772517701031,0.25057,1996.0,1994.5,8.508]
[1772517701032,0.54255662,1995.7,1994.8,0.54474426]
[1772517703436,0.54255662,1995.7,1994.3,6.568]
[1772517703640,0.54255662,1995.7,1994.4,0.54474426]
[1772517706241,0.25061,1995.6,1994.4,0.54474426]
[1772517706542,0.54255662,1995.5,1994.4,0.54474426]
[1772517707945,0.54255662,1995.5,1994.6,0.59305347]
[1772517708245,0.57942601,1995.9,1994.6,0.59305347]
[1772517710047,0.57942601,1995.7,1994.6,0.59305347]
[1772517711749,0.57942601,1995.5,1994.6,0.59305347]
[1772517713548,0.57942601,1995.5,1994.3,0.59305347]
[1772517713946,0.57942601,1995.3,1994.3,0.59305347]
[1772517721157,0.57942601,1995.7,1994.7,0.59305347]
[1772517722654,0.57942601,1995.7,1994.8,0.59305347]
[1772517725760,0.57942601,1995.6,1994.4,0.59305347]
[1772517727068,0.57942601,1995.5,1994.4,0.59305347]
[1772517728167,1.512,1995.7,1994.4,0.59305347]
[1772517728168,0.57942601,1995.3,1994.4,0.59305347]
[1772517730063,0.57942601,1995.3,1994.1,0.00456007]
[1772517730064,0.57942601,1995.1,1994.1,0.59761354]
[1772517730574,0.57942601,1994.9,1994.1,0.00456007]
[1772517730867,0.57942601,1994.7,1993.8,0.59305347]
[1772517731865,0.58404685,1994.7,1993.8,0.5984973]
[1772517732769,0.00462084,1994.7,1993.8,0.5984973]
[1772517733170,0.00462084,1994.7,1993.9,0.59305347]
[1772517733572,0.58404685,1994.7,1993.9,0.59305347]
[1772517736073,0.00462084,1994.7,1993.9,0.59305347]
[1772517736274,0.58404685,1994.7,1993.9,0.59305347]
[1772517740777,0.58404685,1994.7,1993.8,0.00544383]
[1772517740980,0.58404685,1994.7,1993.8,0.56480578]
[1772517742374,0.57784931,1994.5,1993.8,0.00544383]
[1772517743079,0.57784931,1994.5,1993.5,0.55936195]
[1772517743379,0.57784931,1994.5,1993.4,0.55936195]
[1772517743975,0.57784931,1994.5,1993.4,0.56424384]
[1772517744276,0.57784931,1994.3,1993.4,0.56424384]
[1772517744981,0.57784931,1994.5,1993.4,0.56424384]
[1772517751185,0.57784931,1994.4,1993.4,0.56424384]
[1772517752884,0.57784931,1994.2,1993.4,0.00488189]
[1772517753983,0.57784931,1994.2,1993.3,0.55936195]
[1772517755085,0.57784931,1994.2,1993.3,0.56536223]
[1772517756984,1.512,1994.6,1993.3,0.56536223]
[1772517756985,0.57784931,1994.5,1993.3,0.56536223]
[1772517758287,0.57784931,1994.5,1993.5,0.55936195]
[1772517758478,0.57784931,1994.5,1993.6,0.55936195]
[1772517759191,0.00462084,1994.7,1993.6,0.55936195]
[1772517759192,0.58247015,1994.7,1993.6,0.55936195]
[1772517759883,0.58247015,1994.7,1993.5,9.79670051]
[1772517759884,0.58247015,1994.7,1993.9,0.55936195]
[1772517767098,0.57784931,1994.5,1993.6,0.55936195]
[1772517769094,0.54244975,1994.3,1993.6,0.55936195]
[1772517769392,0.54244975,1994.3,1993.4,0.54720866]
[1772517772997,0.54244975,1994.3,1993.6,0.54720866]
[1772517773199,0.54244975,1994.6,1993.6,0.54720866]
[1772517779000,0.54244975,1994.4,1993.3,0.55320894]
[1772517780203,0.54244975,1994.4,1993.4,0.54720866]
[1772517786000,0.54244975,1994.4,1993.5,0.54720866]
[1772517792406,0.54244975,1994.2,1993.4,0.54720866]
[1772517794704,0.54244975,1994.1,1993.4,0.54720866]
[1772517795406,0.25078,1994.3,1993.3,0.00600028]
[1772517795407,0.54244975,1993.9,1993.3,0.00600028]
[1772517795807,0.54244975,1993.5,1993.1,0.54720866]
[1772517796404,0.54244975,1993.5,1993.0,0.54720866]
[1772517796910,0.54244975,1993.5,1993.0,0.00469655]
[1772517797305,0.54244975,1993.5,1992.9,1.57467305]
[1772517797501,1.76283,1993.9,1992.1,0.25105]
[1772517797502,0.54244975,1993.3,1992.8,0.54720866]
[1772517797702,0.54244975,1993.3,1992.7,1.5986789]
[1772517798504,0.54781797,1993.3,1992.8,0.57121451]
[1772517798809,0.54781797,1993.3,1993.0,0.57121451]
[1772517798810,0.00536822,1993.3,1993.0,0.57121451]
[1772517799514,0.5956723,1993.8,1993.3,0.58915766]
[1772517799711,0.5956723,1994.0,1993.3,0.58915766]
[1772517800413,0.60130523,1994.0,1993.3,0.58915766]
[1772517801711,0.60130523,1994.0,1993.6,0.58915766]
[1772517802313,0.60130523,1994.0,1993.4,0.58915766]
[1772517802715,0.60130523,1994.0,1993.2,0.58915766]
[1772517805210,0.60130523,1994.0,1993.3,0.58915766]
[1772517805415,0.00563293,1994.0,1993.3,0.58915766]
[1772517805617,0.60130523,1994.0,1993.3,0.58915766]
[1772517806414,0.60130523,1994.0,1993.2,0.58915766]
[1772517815424,0.5956723,1993.9,1993.1,0.58915766]
[1772517828134,1.51763293,1994.0,1993.6,0.58337719]
[1772517828135,0.00563293,1994.0,1993.6,0.58337719]
[1772517828432,0.54740685,1994.2,1993.6,0.58337719]
[1772517829236,0.00504133,1994.2,1993.6,0.58337719]
[1772517830437,0.54740685,1994.6,1993.8,0.58337719]
[1772517830834,0.54740685,1994.4,1993.4,0.58337719]
[1772517831238,0.54740685,1994.4,1993.6,0.58337719]
[1772517831438,0.55175288,1994.4,1993.6,0.58337719]
[1772517832737,0.55175288,1994.4,1993.3,8.67337719]
[1772517832932,0.54740685,1994.2,1993.4,0.58337719]
[1772517837242,0.54740685,1994.2,1993.2,0.58337719]
[1772517841140,0.54740685,1994.2,1993.3,0.58337719]
[1772517843242,0.54740685,1994.2,1992.9,8.069]
[1772517843243,0.54740685,1994.0,1992.8,0.58337719]
[1772517843445,0.54740685,1993.7,1992.8,0.58337719]
[1772517844546,0.54740685,1993.7,1992.7,0.00623191]
[1772517844547,0.54740685,1993.3,1992.7,0.00623191]
[1772517844946,0.54740685,1993.3,1992.7,0.5896091]
[1772517845146,0.54740685,1993.3,1992.7,0.00623191]
[1772517846348,0.54740685,1993.3,1991.7,14.88483474]
[1772517846547,0.54740685,1993.3,1991.9,0.58337719]
[1772517847451,0.54740685,1993.3,1991.9,0.58917019]
[1772517848345,0.54740685,1993.3,1992.1,0.58337719]
[1772517848848,0.54740685,1993.6,1992.4,0.58337719]
[1772517849653,0.54740685,1993.6,1992.1,1.48100849]
[1772517849654,0.54740685,1993.6,1992.6,0.58337719]
[1772517849854,0.25083,1993.9,1992.5,1.73200849]
[1772517849855,0.54740685,1993.8,1992.8,0.58337719]
[1772517850556,0.54740685,1994.2,1992.8,0.58337719]
[1772517854459,0.54740685,1994.2,1993.0,0.58337719]
[1772517857062,0.54740685,1994.2,1992.9,9.76695849]
[1772517857063,0.00434603,1994.4,1993.4,0.58337719]
[1772517857263,0.00434603,1994.4,1993.4,0.58975284]
[1772517857463,0.55175288,1994.4,1993.4,0.58975284]
[1772517858166,0.00434603,1994.4,1993.6,0.59320564]
[1772517858461,0.00434603,1994.4,1993.7,0.59320564]
[1772517859057,0.57305324,1994.6,1993.7,0.59320564]
[1772517860056,0.57899188,1994.6,1993.7,0.59320564]
[1772517861973,0.57899188,1994.6,1993.8,0.58669261]
[1772517864471,0.00593864,1994.6,1993.8,0.58669261]
[1772517865271,0.56503803,1994.8,1994.0,0.58669261]
[1772517865872,0.56503803,1994.8,1993.8,0.58669261]
[1772517866267,0.57017758,1994.8,1993.8,0.58669261]
[1772517866672,0.56503803,1994.4,1993.5,0.58669261]
[1772517868174,0.56503803,1994.4,1993.4,0.00637565]
[1772517868175,0.56503803,1994.0,1992.9,0.58669261]
[1772517868376,0.2508,1994.1,1992.6,0.58669261]
[1772517868377,0.56503803,1993.8,1992.6,0.58669261]
[1772517869282,0.56503803,1993.8,1992.6,0.59262812]
[1772517869487,0.56503803,1993.6,1992.6,0.00593551]
[1772517870278,0.56503803,1993.4,1992.6,0.00593551]
[1772517870577,0.56503803,1993.2,1992.3,0.58669261]
[1772517871587,0.56503803,1993.2,1992.3,0.59042732]
[1772517879178,0.57080534,1993.4,1992.3,0.59042732]
[1772517879578,0.00576731,1993.4,1992.5,0.58669261]
[1772517880386,0.57080534,1993.4,1992.5,0.58669261]
[1772517882087,0.57080534,1993.4,1992.7,0.58669261]
[1772517884490,0.57080534,1993.4,1992.5,0.58669261]
[1772517892596,0.57080534,1993.4,1992.4,0.54967049]
[1772517892793,0.591739,1993.2,1992.3,0.5534052]
[1772517892996,0.591739,1993.1,1992.3,0.00373471]
[1772517893994,0.591739,1993.1,1992.3,0.5534052]
[1772517897198,0.591739,1993.1,1992.3,0.00373471]
[1772517897701,0.591739,1992.9,1992.3,0.00373471]
[1772517898601,0.591739,1992.9,1992.3,0.5534052]
[1772517900301,0.591739,1993.0,1992.3,0.5534052]
[1772517901004,0.591739,1993.0,1992.3,0.00373471]
[1772517902002,0.591739,1993.0,1992.3,0.5534052]
[1772517909215,2.103739,1993.2,1992.5,0.54967049]
[1772517910110,0.591739,1993.2,1992.5,0.54967049]
[1772517911517,0.591739,1993.2,1992.3,0.00373471]
[1772517912016,0.591739,1993.2,1992.3,0.5534052]
[1772517913010,0.591739,1993.0,1992.3,0.5534052]
[1772517913218,0.591739,1993.0,1992.3,0.00373471]
[1772517913618,0.591739,1992.8,1991.9,7.868]
[1772517913919,0.591739,1992.8,1992.0,0.54967049]
[1772517913920,0.591739,1992.7,1992.0,0.54967049]
[1772517914821,0.591739,1992.7,1992.0,0.55528361]
[1772517916020,0.591739,1992.7,1992.0,0.00561312]
[1772517916520,0.591739,1992.7,1992.0,0.57524401]
[1772517918317,1.512,1992.8,1895.4,33.5250275]
[1772517918318,0.55492377,1992.3,1991.3,0.5932246]
[1772517919317,0.55492377,1992.3,1991.3,0.59923776]
[1772517920423,0.55492377,1992.1,1991.3,0.00601316]
[1772517921919,0.55492377,1992.1,1991.3,0.59923776]
[1772517922524,0.55492377,1992.1,1991.5,0.5932246]
[1772517924124,0.55492377,1992.1,1991.4,0.5932246]
[1772517928924,0.55492377,1992.7,1991.8,0.5932246]
[1772517930726,0.55492377,1992.6,1991.8,0.5932246]
[1772517935334,2.06692377,1992.7,1992.0,0.5932246]
[1772517935530,0.55492377,1992.6,1992.0,0.5932246]
[1772517939137,0.55492377,1992.7,1992.0,0.5932246]
[1772517943742,0.55492377,1992.7,1991.7,0.5932246]
[1772517947544,0.55492377,1993.0,1991.9,0.5932246]
[1772517949345,0.55492377,1993.0,1992.1,0.56614552]
[1772517949538,0.55492377,1993.0,1992.3,0.56614552]
[1772517952837,0.55492377,1993.0,1991.6,13.15272625]
[1772517952838,0.55492377,1993.0,1991.7,0.56614552]
[1772517953049,0.54773788,1992.9,1991.7,0.56614552]
[1772517953341,0.54773788,1992.5,1991.5,0.56614552]
[1772517959746,0.54773788,1992.3,1991.5,0.56614552]
[1772517960651,0.54773788,1992.1,1991.3,0.00601316]
[1772517960852,0.54773788,1991.9,1991.3,0.00601316]
[1772517961151,0.55296733,1991.9,1991.3,0.00601316]
[1772517961353,0.00522945,1991.9,1991.3,0.57215868]
[1772517962554,0.54773788,1992.2,1991.3,0.57215868]
[1772517963453,0.55218718,1992.2,1991.3,0.57215868]
[1772517964453,0.0044493,1992.2,1991.3,0.82330868]
[1772517964655,0.54773788,1992.5,1991.6,0.56614552]
[1772517964855,0.54773788,1992.5,1991.8,0.56614552]
[1772517965154,0.54773788,1992.9,1991.8,0.56614552]
[1772517965650,0.55307848,1992.9,1991.8,0.56614552]
[1772517966549,0.54773788,1992.7,1991.8,0.56614552]
[1772517970347,0.54773788,1992.7,1991.6,8.27814552]
[1772517970553,0.54773788,1992.6,1991.6,7.712]
[1772517970756,0.54773788,1992.6,1991.6,8.27814552]
[1772517972051,0.54773788,1992.4,1991.5,0.56614552]
[1772517973547,0.54773788,1992.4,1991.4,0.56614552]
[1772517980564,0.57486294,1992.2,1991.3,0.00601316]
[1772517980759,0.57486294,1992.2,1991.3,0.57342204]
[1772517984867,0.57486294,1992.4,1991.4,0.56740888]
[1772517986570,0.57486294,1992.4,1991.6,0.56740888]
[1772517988669,0.57486294,1992.7,1991.6,0.56740888]
[1772517994867,0.57486294,1992.7,1991.7,2.04873253]
[1772517995072,0.57486294,1992.7,1991.8,0.56740888]
[1772517995571,0.57486294,1992.8,1991.8,0.56740888]
[1772517998967,0.57486294,1993.0,1992.2,0.56740888]
[1772517999170,0.57486294,1993.0,1992.4,0.56740888]
[1772517999373,0.57486294,1993.4,1992.4,0.56740888]
[1772518000173,0.58006927,1993.4,1992.4,0.56740888]
[1772518000573,0.58006927,1993.4,1992.6,0.56740888]
[1772518001176,0.58006927,1993.4,1992.4,0.56740888]
[1772518001671,0.57486294,1993.3,1992.2,2.04763484]
[1772518001880,0.57486294,1993.3,1992.3,0.56740888]
[1772518003676,0.57486294,1993.3,1992.2,9.13622596]
[1772518003677,0.57486294,1993.3,1992.6,0.56740888]
[1772518006885,0.58006927,1993.4,1992.9,0.56740888]
[1772518007085,0.58006927,1993.4,1992.9,0.57108979]
[1772518007475,0.00520633,1993.4,1992.9,0.57108979]
[1772518007785,0.57486294,1993.6,1992.9,0.57108979]
[1772518008687,0.58055215,1993.6,1992.9,0.57108979]
[1772518008882,0.58055215,1993.6,1992.9,0.00368091]
[1772518009587,0.58055215,1993.6,1992.9,0.54267479]
[1772518011104,0.56484651,1994.2,1992.9,0.54267479]
[1772518011391,0.56484651,1994.2,1993.5,0.53899388]
[1772518012187,0.56910713,1994.2,1993.5,0.53899388]
[1772518020396,0.56484651,1994.0,1992.9,0.54267479]
[1772518021600,0.56910713,1994.2,1993.5,0.53899388]
[1772518023394,1.512,1994.8,1993.8,0.53899388]
[1772518023395,0.56484651,1994.7,1993.8,0.53899388]
[1772518024297,0.56484651,1995.1,1994.3,0.53899388]
[1772518024505,0.56484651,1995.1,1994.5,0.53899388]
[1772518025407,0.56835831,1995.1,1994.5,0.54447107]
[1772518026304,0.56835831,1995.1,1994.6,0.53899388]
[1772518028408,0.25061,1995.7,1994.6,0.53899388]
[1772518028409,0.56484651,1995.3,1994.6,0.53899388]
[1772518029407,0.5710952,1995.3,1994.6,0.53899388]
[1772518029703,0.00624869,1995.3,1994.6,0.53899388]
[1772518029903,0.45396281,1995.4,1994.6,0.53899388]
[1772518030708,0.45396281,1995.4,1994.5,0.00547719]
[1772518030909,0.45787592,1995.4,1994.5,0.00547719]
[1772518031103,0.45787592,1995.4,1994.5,0.54447107]
[1772518031507,0.00391311,1995.4,1994.5,0.54447107]
[1772518032408,0.56875962,1995.4,1994.5,0.54447107]
[1772518033911,0.56875962,1995.4,1994.6,0.53899388]
[1772518034710,0.00391311,1995.4,1994.6,0.53899388]
[1772518036111,0.56875962,1995.4,1994.6,0.53899388]
[1772518041508,2.08075962,1995.4,1994.5,0.00547719]
[1772518041708,0.56875962,1995.4,1994.5,0.00547719]
[1772518043718,0.56875962,1995.4,1994.5,0.55624787]
[1772518046425,0.55181246,1995.2,1994.2,0.55077068]
[1772518046621,0.55181246,1995.2,1993.8,0.55077068]
[1772518047020,0.55181246,1994.9,1993.8,0.55077068]
[1772518047221,0.55181246,1994.9,1993.8,0.55630849]
[1772518047521,0.55181246,1994.7,1993.8,0.55630849]
[1772518047923,0.55181246,1994.6,1993.8,0.00553781]
[1772518048124,0.55181246,1994.6,1993.8,0.55630849]
[1772518049621,0.55181246,1995.2,1994.0,0.55077068]
[1772518050825,0.55181246,1994.9,1993.8,0.55630849]
[1772518051626,0.55181246,1994.9,1993.8,0.00553781]
[1772518051627,0.80255246,1994.6,1993.8,0.00553781]
[1772518051825,0.55181246,1994.1,1993.0,0.55077068]
[1772518052523,0.55181246,1993.9,1993.0,0.55077068]
[1772518052722,0.55705578,1993.9,1993.0,0.00615605]
[1772518052921,0.55705578,1993.9,1993.0,0.55692673]
[1772518055725,0.55705578,1993.9,1993.2,0.55077068]
[1772518060231,0.55181246,1993.5,1992.7,0.55077068]
[1772518061335,0.55181246,1993.5,1992.7,0.55706393]
[1772518069141,0.57762208,1993.7,1992.7,0.55706393]
[1772518069841,1.512,1993.8,1992.7,0.55706393]
[1772518070335,2.08962208,1993.8,1992.9,0.58287128]
[1772518071384,0.57762208,1993.7,1992.9,0.58287128]
[1772518079340,0.57762208,1993.5,1992.9,0.58287128]
[1772518079544,0.57762208,1993.5,1992.7,0.00629325]
[1772518079940,0.57762208,1993.5,1992.7,0.58916453]
[1772518080845,0.57762208,1993.0,1991.8,0.58287128]